bitfinex/quotes_SOLUSD_20220311
["timestamp","ask_amount","ask_price","bid_price","bid_amount"]
[1646993360304,121.9,82.024,81.961,63.33742084]
[1646993360506,121.9,82.022,81.961,63.33742084]
[1646993360704,6.097,82.021,81.961,63.33742084]
[1646993361127,6.097,82.025,81.961,63.33742084]
[1646993361330,121.9,82.024,81.961,63.33742084]
[1646993361527,121.9,82.022,81.961,63.33742084]
[1646993361726,6.097,82.021,81.961,63.33742084]
[1646993361927,6.097,82.025,81.961,63.33742084]
[1646993367543,23.6531,82.026,81.961,63.33742084]
[1646993367741,121.9,82.037,81.961,63.33742084]
[1646993367938,121.9,82.037,81.962,24.1294]
[1646993368538,23.4905,82.038,82.001,51.55214768]
[1646993373646,23.6822,82.037,82.001,51.55214768]
[1646993374047,23.6822,82.037,81.99,119.31732298]
[1646993375149,23.6822,82.037,81.991,56.34787218]
[1646993394408,28.44215167,82.036,81.976,51.83221896]
[1646993395211,28.44215167,82.036,81.99,18.2812]
[1646993396009,34.53815167,82.036,81.99,18.2812]
[1646993398217,0.25,82.035,81.99,18.2812]
[1646993399216,0.25,82.035,82.0,18.2809]
[1646993408453,0.25,82.035,81.98,18.2834]
[1646993408660,6.097,82.034,81.95,60.9535]
[1646993409053,6.097,82.034,81.958,3.04447957]
[1646993409253,0.25,82.033,81.958,3.04447957]
[1646993409453,6.097,82.032,81.959,71.55020026]
[1646993409656,6.097,82.032,81.98,18.2855]
[1646993412155,6.097,82.032,81.981,16.43703721]
[1646993412354,6.097,82.032,81.98,18.2855]
[1646993412554,127.997,82.032,81.97,18.288]
[1646993412755,127.997,82.032,81.961,23.49167576]
[1646993412756,17.56,82.03,81.961,23.49167576]
[1646993412955,127.997,82.029,81.949,3.04447957]
[1646993413156,164.04119266,82.029,81.941,41.47107576]
[1646993413357,29.41419266,82.028,81.951,59.82916336]
[1646993413556,151.9631,82.027,81.951,59.82916336]
[1646993413766,151.9631,82.027,81.96,18.2903]
[1646993413959,121.9,82.025,81.952,16.44023835]
[1646993414158,121.9,82.023,81.94,31.83169034]
[1646993414357,121.9,82.019,81.94,31.83169034]
[1646993414558,121.9,82.017,81.941,16.43780129]
[1646993414758,121.9,82.015,81.941,16.43780129]
[1646993414958,121.9,82.013,81.942,48.91667817]
[1646993415162,127.999,82.012,81.942,70.04492066]
[1646993415358,127.999,82.012,81.943,40.76775442]
[1646993415559,48.8403,82.011,81.943,40.76775442]
[1646993415759,6.099,82.01,81.944,16.43780129]
[1646993416060,6.099,82.01,81.944,40.76775442]
[1646993416263,0.25,82.009,81.96,18.29]
[1646993416460,6.098,82.008,81.961,59.3196797]
[1646993416661,0.25,82.009,81.961,59.3196797]
[1646993417961,48.8403,82.011,81.961,59.3196797]
[1646993419962,0.25,82.01,81.961,59.3196797]
[1646993420562,6.098,82.009,81.961,59.3196797]
[1646993422365,6.098,82.009,81.96,18.29]
[1646993423868,6.098,82.01,81.96,18.29]
[1646993424271,121.9,82.009,81.94,50.12479034]
[1646993424471,121.9,82.007,81.94,18.2931]
[1646993424704,121.9,82.005,81.941,16.42079217]
[1646993425001,121.9,82.003,81.941,16.42079217]
[1646993425200,25.60881564,82.0,81.941,16.42079217]
[1646993425402,150.9873,81.999,81.941,16.42079217]
[1646993425701,150.9873,81.999,81.94,18.2931]
[1646993426100,150.9873,81.999,81.95,79.4695995]
[1646993427100,150.9873,81.999,81.95,18.2924]
[1646993428205,150.9873,81.999,81.951,56.88929672]
[1646993429206,29.0873,81.999,81.951,56.88929672]
[1646993429406,22.9883,81.999,81.951,56.88929672]
[1646993430806,0.25,81.998,81.951,56.88929672]
[1646993432207,0.25,81.998,81.95,18.2924]
[1646993432608,6.099,81.997,81.95,18.2924]
[1646993433010,6.099,81.997,81.951,65.00375486]
[1646993433411,6.099,81.998,81.951,65.00375486]
[1646993434809,0.25,81.997,81.951,65.00375486]
[1646993435009,6.099,81.996,81.951,65.00375486]
[1646993436912,0.25,81.997,81.951,65.00375486]
[1646993438412,22.9883,81.999,81.951,65.00375486]
[1646993440314,6.099,81.998,81.951,65.00375486]
[1646993441116,121.9,81.997,81.951,65.00375486]
[1646993441315,121.9,81.995,81.924,18.4575]
[1646993441515,121.9,81.993,81.924,18.4575]
[1646993441824,127.999,81.992,81.925,16.39838014]
[1646993442019,6.099,81.992,81.925,16.39838014]
[1646993442216,6.099,81.998,81.925,16.39838014]
[1646993442414,121.9,81.997,81.926,50.18742493]
[1646993442616,121.9,81.995,81.926,50.18742493]
[1646993442814,121.9,81.993,81.926,50.18742493]
[1646993443017,127.999,81.992,81.927,16.39838014]
[1646993443337,127.999,81.992,81.941,58.21902444]
[1646993444216,6.099,81.992,81.941,58.21902444]
[1646993444416,6.099,81.998,81.941,58.21902444]
[1646993445720,1.66276071,82.032,81.942,3.29447957]
[1646993445920,24.1363,82.039,81.943,4.04771182]
[1646993446118,24.1363,82.039,81.944,0.25]
[1646993446322,24.1363,82.039,81.944,76.39124815]
[1646993446521,24.1363,82.039,81.945,29.50804249]
[1646993446719,30.09415812,82.038,81.946,0.25]
[1646993447018,122.15,82.037,81.946,50.59268432]
[1646993447221,121.9,82.035,81.947,16.39241253]
[1646993447419,121.9,82.033,81.947,16.39241253]
[1646993447620,121.9,82.029,81.947,16.39241253]
[1646993447819,121.9,82.027,81.942,16.39241253]
[1646993448021,121.9,82.025,81.96,18.2921]
[1646993448221,2.03824651,82.024,81.96,18.2921]
[1646993448421,121.9,82.022,81.96,18.2921]
[1646993448620,2.03824651,82.024,81.96,18.2921]
[1646993448621,121.9,82.02,81.96,18.2921]
[1646993448920,121.9,82.018,81.96,18.2921]
[1646993449122,121.9,82.016,81.96,18.2921]
[1646993449422,121.9,82.014,81.96,18.2921]
[1646993449722,27.90421278,82.011,81.96,18.2921]
[1646993449924,6.098,82.01,81.96,18.2921]
[1646993450721,23.6086,82.009,81.96,18.2921]
[1646993450952,6.098,82.008,81.96,18.2921]
[1646993451248,6.098,82.008,81.97,18.29]
[1646993452754,3.04447957,82.071,81.971,3.04447957]
[1646993453053,23.3318,82.033,81.971,3.04447957]
[1646993453254,23.3318,82.033,81.972,16.39958273]
[1646993453654,23.3318,82.033,81.973,3.04447957]
[1646993453857,28.78438006,82.032,82.0,18.283]
[1646993454056,0.25,82.031,82.0,18.283]
[1646993474003,0.25,82.031,82.001,56.44601776]
[1646993474403,0.25,82.031,82.0,18.283]
[1646993478708,0.25,82.031,82.0,79.4539519]
[1646993481911,0.25,82.031,82.01,18.2811]
[1646993482112,22.7754,82.069,82.0,61.1709519]
[1646993482310,22.7754,82.059,82.001,3.04447957]
[1646993482510,6.095,82.058,82.001,3.04447957]
[1646993482912,23.54504779,82.057,82.001,3.04447957]
[1646993483114,6.095,82.056,82.001,3.04447957]
[1646993483313,6.095,82.056,82.002,27.16804249]
[1646993483515,22.7754,82.059,81.926,37.89087157]
[1646993483516,100.0,82.057,81.926,37.89087157]
[1646993483713,73.14,82.043,81.926,37.89087157]
[1646993483911,17.56,82.03,81.925,31.83288736]
[1646993484111,150.7734,82.029,81.925,31.83288736]
[1646993484310,244.23265818,82.029,81.925,31.83288736]
[1646993484510,121.9,82.027,81.942,47.01061468]
[1646993484711,121.9,82.025,81.922,12.72811092]
[1646993484911,121.9,82.019,81.922,12.72811092]
[1646993485114,121.9,82.009,81.93,18.2961]
[1646993485412,121.9,82.007,81.93,18.2961]
[1646993485613,121.9,82.005,81.931,56.74710636]
[1646993485811,17.56,81.99,81.931,56.74710636]
[1646993486010,31.0296,81.989,81.931,56.74710636]
[1646993486412,24.9306,81.989,81.931,56.74710636]
[1646993489115,31.4506,81.989,81.931,56.74710636]
[1646993489314,125.19447957,81.988,81.931,56.74710636]
[1646993489514,121.9,81.986,81.92,18.2974]
[1646993489714,121.9,81.984,81.92,18.2974]
[1646993489914,121.9,81.982,81.92,18.2974]
[1646993490120,121.9,81.98,81.92,18.2974]
[1646993490315,121.9,81.978,81.92,18.2974]
[1646993490517,121.9,81.976,81.92,18.2974]
[1646993490717,121.9,81.974,81.92,18.2974]
[1646993490917,121.9,81.972,81.92,18.2974]
[1646993491121,6.101,81.971,81.92,18.2974]
[1646993492122,121.9,81.976,81.92,18.2974]
[1646993492319,121.9,81.974,81.92,18.2974]
[1646993492520,121.9,81.972,81.92,18.2974]
[1646993492720,6.101,81.971,81.92,18.2974]
[1646993493722,121.9,81.976,81.92,18.2974]
[1646993493925,121.9,81.974,81.92,18.2974]
[1646993494122,121.9,81.972,81.92,18.2974]
[1646993494521,6.101,81.971,81.92,18.2974]
[1646993496427,121.9,81.976,81.92,18.2974]
[1646993496624,47.2183,81.979,81.92,18.2974]
[1646993496625,121.9,81.974,81.92,18.2974]
[1646993496827,121.9,81.972,81.92,18.2974]
[1646993497030,121.9,81.97,81.912,6.35648719]
[1646993497230,121.9,81.968,81.912,6.35648719]
[1646993497424,121.9,81.966,81.912,6.35648719]
[1646993497626,121.9,81.964,81.912,6.35648719]
[1646993497828,121.9,81.962,81.913,56.1245327]
[1646993498031,6.102,81.961,81.913,56.1245327]
[1646993500233,0.25,81.96,81.91,18.3005]
[1646993500434,6.102,81.959,81.91,18.3005]
[1646993500732,23.7248,81.958,81.91,18.3005]
[1646993500933,6.102,81.957,81.91,18.3005]
[1646993504057,23.4748,81.958,81.91,18.3005]
[1646993505259,0.25,81.957,81.91,18.3005]
[1646993506660,6.102,81.956,81.91,18.3005]
[1646993507962,6.102,81.957,81.91,18.3005]
[1646993511867,0.25,81.956,81.91,18.3005]
[1646993512067,6.102,81.955,81.91,18.3005]
[1646993513469,6.102,81.957,81.91,18.3005]
[1646993513868,6.102,81.957,81.948,0.33681419]
[1646993514872,3.03219997,81.956,81.948,0.33681419]
[1646993515068,6.101,81.955,81.948,0.33681419]
[1646993515472,0.25,81.954,81.948,0.33681419]
[1646993515670,6.101,81.953,81.948,0.33681419]
[1646993516872,0.25,81.954,81.948,0.33681419]
[1646993520978,3.03219997,81.956,81.948,0.33681419]
[1646993521381,0.25,81.955,81.948,0.33681419]
[1646993526185,0.25,81.955,81.948,0.00681419]
[1646993526387,121.9,81.953,81.948,0.00681419]
[1646993526589,121.9,81.951,81.948,0.00681419]
[1646993526787,121.9,81.949,81.948,0.00681419]
[1646993526985,128.001,81.949,81.948,0.00681419]
[1646993529287,128.251,81.949,81.948,0.00681419]
[1646993530709,127.751,81.949,81.948,0.00681419]
[1646993532811,22.932,81.952,81.948,0.00681419]
[1646993536211,0.25,81.951,81.948,0.00681419]
[1646993539714,3.03219997,81.95,81.948,0.00681419]
[1646993541817,22.932,81.952,81.948,0.00681419]
[1646993543722,0.25,81.951,81.948,0.00681419]
[1646993544121,3.03219997,81.95,81.948,0.00681419]
[1646993545218,22.932,81.952,81.948,0.00681419]
[1646993547621,0.25,81.951,81.948,0.00681419]
[1646993548621,3.03219997,81.95,81.948,0.00681419]
[1646993549022,23.3266,81.949,81.948,0.00681419]
[1646993549425,0.25,81.951,81.948,0.00681419]
[1646993550621,22.5201,81.979,81.948,0.00681419]
[1646993550822,0.25,81.978,81.948,0.00681419]
[1646993551321,6.099,81.977,81.948,0.00681419]
[1646993551724,6.099,81.978,81.948,0.00681419]
[1646993551923,22.5201,81.979,81.948,0.00681419]
[1646993553324,0.25,81.978,81.948,0.00681419]
[1646993554529,6.099,81.998,81.948,0.00681419]
[1646993554926,6.099,82.009,81.948,0.00681419]
[1646993555427,6.099,82.016,81.948,0.00681419]
[1646993555628,6.099,82.016,81.96,18.29]
[1646993555826,0.25,82.015,81.96,18.29]
[1646993556027,6.098,82.014,81.96,18.29]
[1646993556326,17.56,82.01,81.96,18.29]
[1646993556530,6.098,82.009,81.96,18.29]
[1646993556726,6.098,82.009,81.954,64.42255789]
[1646993557626,17.56,82.01,81.954,64.42255789]
[1646993560639,6.098,82.009,81.954,64.42255789]
[1646993561238,0.25,82.008,81.954,64.42255789]
[1646993561438,6.098,82.007,81.954,64.42255789]
[1646993561638,23.6229,82.006,81.954,64.42255789]
[1646993561839,6.099,82.005,81.954,64.42255789]
[1646993562242,122.1,82.032,81.954,64.42255789]
[1646993562243,122.1,82.042,81.955,0.25]
[1646993562444,17.56,82.06,81.956,4.77369213]
[1646993562641,23.362,82.041,81.957,0.25]
[1646993562841,23.362,82.041,81.957,73.18927866]
[1646993563140,23.362,82.041,81.96,17.56]
[1646993563362,23.362,82.041,81.961,0.25]
[1646993563564,23.362,82.041,81.961,90.41416602]
[1646993563764,23.362,82.041,81.962,56.53152042]
[1646993564064,6.097,82.079,81.963,0.25]
[1646993564266,122.35,82.078,82.011,53.8030058]
[1646993564464,6.094,82.077,82.011,53.8030058]
[1646993564865,122.1,82.076,81.965,4.14799702]
[1646993565069,6.096,82.075,81.966,0.25]
[1646993565263,6.096,82.075,81.99,18.28]
[1646993565463,122.1,82.074,81.99,18.28]
[1646993565667,122.1,82.069,81.97,60.9358]
[1646993565865,122.1,82.067,81.971,53.49777115]
[1646993566064,6.096,82.066,81.971,106.984812]
[1646993566265,6.096,82.066,81.972,53.48704085]
[1646993566465,6.096,82.066,81.973,0.25]
[1646993566666,6.096,82.066,81.973,53.73704085]
[1646993566864,6.096,82.066,81.974,28.33881087]
[1646993567066,6.096,82.066,82.0,18.2798]
[1646993567266,6.096,82.066,82.0,82.59199288]
[1646993569368,0.25,82.065,82.0,82.59199288]
[1646993569570,17.56,82.06,81.98,18.2823]
[1646993569769,128.196,82.059,81.98,18.2823]
[1646993569969,128.196,82.059,81.975,25.14822998]
[1646993570171,3.04447957,82.058,81.974,28.33881087]
[1646993570469,122.1,82.056,81.975,52.73546941]
[1646993570670,6.096,82.055,81.975,52.73546941]
[1646993570870,122.1,82.054,81.98,18.2844]
[1646993571070,17.56,82.05,81.976,25.14822998]
[1646993571271,6.096,82.049,81.976,25.14822998]
[1646993571669,22.649,82.048,81.976,25.14822998]
[1646993571870,6.096,82.047,81.976,25.14822998]
[1646993572072,6.096,82.047,81.99,18.2822]
[1646993572271,23.0397,82.046,82.001,0.77974419]
[1646993572470,6.095,82.045,82.001,0.77974419]
[1646993573272,5.31525581,82.045,81.991,49.51613583]
[1646993574671,23.0397,82.046,81.991,49.51613583]
[1646993575076,0.25,82.045,81.991,49.51613583]
[1646993576673,6.096,82.044,81.991,49.51613583]
[1646993578179,6.096,82.045,81.991,49.51613583]
[1646993578578,0.25,82.044,81.991,49.51613583]
[1646993578778,6.096,82.043,81.991,49.51613583]
[1646993579878,0.25,82.044,81.991,49.51613583]
[1646993580881,23.0397,82.046,81.991,49.51613583]
[1646993581082,0.25,82.045,81.991,49.51613583]
[1646993582284,0.25,82.045,82.0,18.2801]
[1646993583084,6.095,82.044,82.0,18.2801]
[1646993583288,6.095,82.044,81.991,49.51613583]
[1646993583487,6.096,82.045,81.991,49.51613583]
[1646993585292,0.25,82.044,81.991,49.51613583]
[1646993585493,6.096,82.043,81.991,49.51613583]
[1646993586995,6.096,82.045,81.991,49.51613583]
[1646993587795,116.41500799,82.04,81.991,49.51613583]
[1646993587996,116.41500799,82.04,81.99,18.2823]
[1646993588400,121.33500799,82.04,81.97,18.2847]
[1646993588599,121.33500799,82.04,81.964,29.79900235]
[1646993588600,122.1,82.029,81.964,12.57411499]
[1646993588798,122.1,82.029,81.94,60.9596]
[1646993588799,122.1,82.027,81.94,60.9596]
[1646993588998,6.098,82.026,81.943,53.68649219]
[1646993589617,6.098,82.026,81.95,18.2894]
[1646993590419,0.25,82.025,81.95,43.43762998]
[1646993590620,6.098,82.024,81.95,43.43762998]
[1646993590817,17.56,82.01,81.95,43.43762998]
[1646993591020,24.086,82.009,81.95,43.43762998]
[1646993592921,24.086,82.009,81.95,18.2894]
[1646993593120,6.099,82.008,81.95,18.2894]
[1646993594222,0.25,82.007,81.95,18.2894]
[1646993594419,6.099,82.006,81.95,18.2894]
[1646993597939,6.099,82.007,81.95,18.2894]
[1646993601345,0.25,82.006,81.95,18.2894]
[1646993601545,6.099,82.005,81.95,18.2894]
[1646993601945,6.099,82.007,81.95,18.2894]
[1646993603452,6.099,82.008,81.95,18.2894]
[1646993605047,128.199,82.008,81.948,0.00681419]
[1646993605249,0.25,82.007,81.948,0.00681419]
[1646993605447,6.099,82.006,81.948,0.00681419]
[1646993607249,0.25,82.007,81.948,0.00681419]
[1646993608579,0.25,82.007,81.95,18.2914]
[1646993613781,6.099,82.006,81.95,18.2914]
[1646993614184,6.099,82.007,81.95,18.2914]
[1646993615884,124.81025159,82.0,81.948,0.00681419]
[1646993616086,28.6613,81.999,81.948,0.00681419]
[1646993616285,122.1,81.998,81.948,0.00681419]
[1646993616486,6.099,81.997,81.948,0.00681419]
[1646993616986,154.49856674,81.996,81.948,0.00681419]
[1646993617286,122.1,81.994,81.948,0.00681419]
[1646993617486,122.1,81.979,81.948,0.00681419]
[1646993617686,17.56,81.97,81.948,0.00681419]
[1646993617887,6.099,81.969,81.948,0.00681419]
[1646993620488,128.199,81.969,81.948,0.00681419]
[1646993620887,153.1375,81.969,81.948,0.00681419]
[1646993621290,0.25,81.968,81.948,0.00681419]
[1646993621490,6.099,81.967,81.948,0.00681419]
[1646993622288,122.1,81.965,81.948,0.00681419]
[1646993622489,6.099,81.964,81.948,0.00681419]
[1646993622692,128.199,81.965,81.948,0.00681419]
[1646993623590,122.1,81.965,81.948,0.00681419]
[1646993625191,0.25,81.964,81.948,0.00681419]
[1646993625794,17.56,81.96,81.948,0.00681419]
[1646993625995,6.099,81.959,81.948,0.00681419]
[1646993632203,0.25,81.958,81.948,0.00681419]
[1646993632405,6.101,81.957,81.948,0.00681419]
[1646993632604,3.03219997,81.956,81.948,0.00681419]
[1646993632804,6.101,81.955,81.948,0.00681419]
[1646993633203,23.1841,81.954,81.948,0.00681419]
[1646993634401,122.1,81.953,81.948,0.00681419]
[1646993635202,6.101,81.952,81.948,0.00681419]
[1646993635803,3.04447957,81.951,81.948,0.00681419]
[1646993636002,6.101,81.95,81.948,0.00681419]
[1646993636401,3.04447957,81.949,81.948,0.00681419]
[1646993636602,136.64547957,81.949,81.948,0.00681419]
[1646993641311,136.89547957,81.949,81.948,0.00681419]
[1646993644139,131.49547957,81.949,81.948,0.00681419]
[1646993646540,3.29447957,81.949,81.948,0.00681419]
[1646993646738,0.25,81.949,81.948,0.00681419]
[1646993650140,23.1841,81.954,81.948,0.00681419]
[1646993651945,122.1,81.953,81.948,0.00681419]
[1646993653748,122.1,81.951,81.948,0.00681419]
[1646993654249,6.101,81.95,81.948,0.00681419]
[1646993654648,3.04447957,81.949,81.948,0.00681419]
[1646993654847,131.24547957,81.949,81.948,0.00681419]
[1646993657450,131.49547957,81.949,81.948,0.00681419]
[1646993657951,128.451,81.949,81.948,0.00681419]
[1646993658552,6.351,81.949,81.948,0.00681419]
[1646993661654,0.25,81.949,81.948,0.00681419]
[1646993663156,23.1841,81.954,81.948,0.00681419]
[1646993664358,122.1,81.953,81.948,0.00681419]
[1646993664557,23.1841,81.954,81.948,0.00681419]
[1646993665361,0.25,81.953,81.948,0.00681419]
[1646993665758,23.1841,81.954,81.948,0.00681419]
[1646993667262,0.25,81.953,81.948,0.00681419]
[1646993668692,0.25,81.968,81.948,0.00681419]
[1646993669092,48.0411,81.969,81.948,0.00681419]
[1646993669991,6.099,81.989,81.948,0.00681419]
[1646993670192,23.1026,81.988,81.948,0.00681419]
[1646993670395,6.099,81.987,81.948,0.00681419]
[1646993670795,0.25,81.986,81.948,0.00681419]
[1646993671497,6.099,81.985,81.948,0.00681419]
[1646993671693,6.099,81.987,81.948,0.00681419]
[1646993672393,1.66276071,82.023,81.95,62.47687017]
[1646993672595,17.56,82.04,81.951,0.25]
[1646993672795,24.4589,82.039,81.952,16.4011881]
[1646993672995,24.4589,82.039,81.953,0.25]
[1646993673193,24.4589,82.039,81.953,54.79104363]
[1646993673494,122.1,82.038,82.0,18.2809]
[1646993673700,122.1,82.038,81.954,53.49153268]
[1646993673895,6.097,82.037,81.955,0.25]
[1646993674095,6.097,82.037,81.955,19.69566767]
[1646993674297,0.25,82.036,81.955,19.69566767]
[1646993674495,6.097,82.035,81.956,19.44566767]
[1646993674695,6.097,82.035,81.957,59.2900487]
[1646993674895,6.097,82.037,81.957,87.48275825]
[1646993675096,6.097,82.037,81.99,18.2854]
[1646993677199,122.1,82.038,81.99,18.2854]
[1646993678305,0.25,82.037,81.99,18.2854]
[1646993679003,24.4589,82.039,81.99,18.2854]
[1646993679208,0.25,82.038,81.99,18.2854]
[1646993679903,122.35,82.038,81.99,18.2854]
[1646993682204,6.096,82.037,81.99,18.2854]
[1646993684108,128.196,82.038,81.99,18.2854]
[1646993684309,6.096,82.038,81.99,18.2854]
[1646993684706,6.096,82.038,82.0,18.2829]
[1646993686207,0.25,82.037,82.0,18.2829]
[1646993686409,6.096,82.036,82.0,18.2829]
[1646993687411,6.096,82.036,81.98,60.9399]
[1646993688412,6.096,82.036,81.99,18.2832]
[1646993688811,6.096,82.036,81.98,60.9399]
[1646993689414,6.096,82.038,81.98,60.9399]
[1646993689915,0.25,82.037,81.98,60.9399]
[1646993690117,6.096,82.036,82.0,18.2827]
[1646993690314,6.096,82.036,81.98,60.9399]
[1646993691113,6.096,82.036,81.99,18.2852]
[1646993693716,6.096,82.037,81.97,60.9473]
[1646993694123,6.096,82.037,81.971,3.04447957]
[1646993694920,6.096,82.037,81.98,18.2861]
[1646993695122,6.096,82.037,81.959,12.57411499]
[1646993695321,122.1,82.035,81.959,12.57411499]
[1646993695522,6.097,82.034,81.959,25.14822998]
[1646993695723,17.56,82.02,81.959,25.14822998]
[1646993695923,28.6097,82.019,81.959,25.14822998]
[1646993696124,28.6097,82.019,81.97,18.2885]
[1646993697024,122.1,82.018,81.97,18.2885]
[1646993697235,122.1,82.016,81.95,60.9573]
[1646993697426,6.098,82.015,81.948,0.00681419]
[1646993698428,6.098,82.016,81.949,25.14822998]
[1646993698829,6.098,82.016,81.95,18.2911]
[1646993699031,0.25,82.017,81.95,18.2911]
[1646993699931,0.25,82.017,81.951,25.14822998]
[1646993700932,0.25,82.017,81.96,18.2906]
[1646993702252,6.098,82.016,81.96,18.2906]
[1646993702654,6.098,82.017,81.96,18.2906]
[1646993705359,0.25,82.016,81.96,18.2906]
[1646993705560,6.098,82.015,81.96,18.2906]
[1646993705958,6.098,82.015,81.95,18.2932]
[1646993706359,6.098,82.017,81.95,18.2932]
[1646993707760,6.098,82.017,81.96,18.291]
[1646993709861,0.25,82.016,81.96,18.291]
[1646993710063,6.098,82.015,81.96,18.291]
[1646993713468,0.25,82.014,81.96,18.291]
[1646993713668,17.56,82.01,81.96,18.291]
[1646993713868,29.9418,82.009,81.96,18.291]
[1646993715870,23.8438,82.009,81.96,18.291]
[1646993719882,128.198,82.008,81.96,18.291]
[1646993720080,128.198,82.008,81.94,18.2944]
[1646993720279,151.2754,82.008,81.924,12.71412195]
[1646993720678,0.25,82.007,81.93,3.04447957]
[1646993720903,6.099,82.006,81.931,63.05068826]
[1646993721104,6.099,82.006,81.95,18.2934]
[1646993721504,6.099,82.007,81.95,18.2934]
[1646993721706,128.199,82.007,81.95,18.2934]
[1646993721908,6.099,82.007,81.932,32.30142695]
[1646993722304,6.099,82.007,81.933,32.30142695]
[1646993722706,6.099,82.007,81.934,32.30142695]
[1646993723105,6.099,82.007,81.96,18.2911]
[1646993724206,0.25,82.006,81.96,18.2911]
[1646993724508,6.098,82.005,81.96,18.2911]
[1646993724706,17.56,82.0,81.96,18.2911]
[1646993724907,23.1472,81.999,81.96,18.2911]
[1646993726407,29.2462,81.999,81.96,18.2911]
[1646993727611,23.1472,81.999,81.96,18.2911]
[1646993728308,29.2462,81.999,81.96,18.2911]
[1646993728707,29.2462,81.999,81.961,57.43256084]
[1646993729110,23.1472,81.999,81.961,57.43256084]
[1646993729409,0.25,81.998,81.961,57.43256084]
[1646993730815,0.25,81.998,81.98,18.2864]
[1646993731010,30.5389,82.034,81.962,27.16416781]
[1646993731209,0.25,82.033,81.98,24.11968824]
[1646993731410,6.097,82.032,81.98,24.11968824]
[1646993731611,24.4409,82.034,81.98,24.11968824]
[1646993732310,24.4409,82.034,81.991,62.36131589]
[1646993734114,6.097,82.048,81.991,62.36131589]
[1646993734315,23.3869,82.049,81.992,24.11968824]
[1646993735417,0.25,82.048,81.992,24.11968824]
[1646993735717,0.25,82.048,82.01,18.2796]
[1646993737118,23.5483,82.048,82.01,18.2796]
[1646993740923,6.095,82.077,82.021,54.45917342]
[1646993741125,17.56,82.07,82.021,54.45917342]
[1646993741323,24.2991,82.076,82.022,24.11968824]
[1646993741523,24.5174,82.083,82.022,56.33444852]
[1646993741722,24.5174,82.083,82.023,0.25]
[1646993741924,24.5174,82.083,82.023,56.58444852]
[1646993742123,24.5174,82.083,82.024,29.17028071]
[1646993742323,24.5174,82.083,82.06,18.2686]
[1646993743124,24.5174,82.083,82.05,56.7188104]
[1646993743926,24.5174,82.083,82.05,74.9874104]
[1646993744325,24.2991,82.099,82.05,56.7188104]
[1646993745127,6.091,82.098,82.05,56.7188104]
[1646993745526,0.25,82.097,82.05,56.7188104]
[1646993745727,6.091,82.096,82.05,56.7188104]
[1646993745927,0.25,82.097,82.05,59.76328997]
[1646993746330,0.25,82.097,82.08,18.2637]
[1646993747125,24.2991,82.099,82.08,18.2637]
[1646993747324,0.25,82.098,82.08,18.2637]
[1646993748027,0.25,82.098,82.077,51.62830628]
[1646993753733,0.25,82.098,82.08,18.2638]
[1646993753935,23.7017,82.128,82.077,51.62830628]
[1646993754831,23.7017,82.128,82.1,18.2588]
[1646993755834,23.7017,82.128,82.09,18.2612]
[1646993757640,0.25,82.127,82.09,18.2612]
[1646993758339,122.35,82.127,82.058,29.17028071]
[1646993758541,128.35,82.127,82.044,18.5351]
[1646993758946,128.35,82.127,82.052,3.04447957]